[Event "December 5 Late 2023"]
[Site "https://www.chess.com"]
[Date "2023.12.05"]
[Round "4"]
[White "Boyer, Mahel"]
[Black "Bochnicka, Vladimir"]
[Result "1-0"]
[Board "102"]
[TimeControl "180+1"]
[WhiteFideId "45102422"]
[BlackFideId "14943450"]
[WhiteElo "2676"]
[BlackElo "2409"]
[WhiteTeam "FRA"]
[BlackTeam "SVK"]
[WhiteClock "0:00:03"]
[BlackClock "0:01:44"]

1. e4 {[%clk 0:00:58]}  e5 {[%clk 0:02:59]} 2. d4 {[%clk 0:00:53]}  exd4 {[%clk 0:02:59]} 3. Bc4 {[%clk 0:00:50]}  Nc6 {[%clk 0:02:55]} 4. Nf3 {[%clk 0:00:38]}  Nf6 {[%clk 0:02:51]} 5. Qe2 {[%clk 0:00:33]}  d6 {[%clk 0:02:46]} 6. O-O {[%clk 0:00:31]}  Be7 {[%clk 0:02:46]} 7. h3 {[%clk 0:00:27]}  O-O {[%clk 0:02:45]} 8. Rd1 {[%clk 0:00:26]}  Ne5 {[%clk 0:02:26]} 9. Bb3 {[%clk 0:00:14]}  Re8 {[%clk 0:02:24]} 10. Nxd4 {[%clk 0:00:08]}  h6 {[%clk 0:02:14]} 11. f4 {[%clk 0:00:07]}  Ng6 {[%clk 0:02:12]} 12. e5 {[%clk 0:00:07]}  dxe5 {[%clk 0:02:06]} 13. Nc6 {[%clk 0:00:04]}  Bc5+ {[%clk 0:01:56]} 14. Kh2 {[%clk 0:00:03]}  Ng4+ {[%clk 0:01:56]} 15. Qxg4 {[%clk 0:00:01]}  Bxg4 {[%clk 0:01:55]} 16. Rxd8 {[%clk 0:00:01]}  Raxd8 {[%clk 0:01:54]} 17. Nxd8 {[%clk 0:00:02]}  Bc8 {[%clk 0:01:50]} 18. Bxf7+ {[%clk 0:00:01]}  Kf8 {[%clk 0:01:50]} 19. Bxe8 {[%clk 0:00:02]}  Kxe8 {[%clk 0:01:51]} 20. f5 {[%clk 0:00:01]}  Nh4 {[%clk 0:01:50]} 21. Ne6 {[%clk 0:00:01]}  Bf2 {[%clk 0:01:47]} 22. Nxc7+ {[%clk 0:00:01]}  Kd7 {[%clk 0:01:47]} 23. Nd5 {[%clk 0:00:02]}  Nf3+ {[%clk 0:01:47]} 24. gxf3 {[%clk 0:00:02]}  Bd4 {[%clk 0:01:44]} 25. Nbc3 {[%clk 0:00:03]} 1-0

[Event "December 5 Late 2023"]
[Site "https://www.chess.com"]
[Date "2023.12.05"]
[Round "4"]
[White "Seemann, Jakub"]
[Black "Marchesich, Giovanni"]
[Result "1-0"]
[Board "105"]
[TimeControl "180+1"]
[WhiteFideId "21874697"]
[BlackFideId "2824790"]
[WhiteElo "2616"]
[BlackElo "2401"]
[WhiteTeam "POL"]
[BlackTeam "ITA"]
[WhiteClock "0:01:07"]
[BlackClock "0:00:13"]

1. b3 {[%clk 0:02:56]}  a5 {[%clk 0:02:57]} 2. a3 {[%clk 0:02:54]}  e5 {[%clk 0:02:57]} 3. Bb2 {[%clk 0:02:55]}  d6 {[%clk 0:02:57]} 4. e3 {[%clk 0:02:55]}  f5 {[%clk 0:02:57]} 5. d3 {[%clk 0:02:51]}  Nf6 {[%clk 0:02:56]} 6. Nd2 {[%clk 0:02:51]}  Be7 {[%clk 0:02:55]} 7. Ngf3 {[%clk 0:02:52]}  O-O {[%clk 0:02:55]} 8. Be2 {[%clk 0:02:53]}  c6 {[%clk 0:02:54]} 9. O-O {[%clk 0:02:53]}  Be6 {[%clk 0:02:54]} 10. c4 {[%clk 0:02:53]}  Nbd7 {[%clk 0:02:54]} 11. b4 {[%clk 0:02:54]}  Qc7 {[%clk 0:02:45]} 12. Qb3 {[%clk 0:02:53]}  a4 {[%clk 0:02:42]} 13. Qc2 {[%clk 0:02:53]}  h6 {[%clk 0:02:32]} 14. Rfe1 {[%clk 0:02:42]}  g5 {[%clk 0:02:32]} 15. Red1 {[%clk 0:02:37]}  Bf7 {[%clk 0:02:27]} 16. Rac1 {[%clk 0:02:36]}  Rae8 {[%clk 0:02:25]} 17. Qxa4 {[%clk 0:02:33]}  g4 {[%clk 0:02:14]} 18. Ne1 {[%clk 0:02:32]}  Kh7 {[%clk 0:02:05]} 19. d4 {[%clk 0:02:29]}  Rg8 {[%clk 0:02:02]} 20. dxe5 {[%clk 0:02:28]}  Nxe5 {[%clk 0:02:02]} 21. c5 {[%clk 0:02:26]}  Nd5 {[%clk 0:01:53]} 22. cxd6 {[%clk 0:02:25]}  Bxd6 {[%clk 0:01:53]} 23. g3 {[%clk 0:02:20]}  h5 {[%clk 0:01:45]} 24. Qc2 {[%clk 0:02:18]}  Bg6 {[%clk 0:01:44]} 25. Nd3 {[%clk 0:02:10]}  h4 {[%clk 0:01:24]} 26. Nf4 {[%clk 0:02:05]}  hxg3 {[%clk 0:01:23]} 27. hxg3 {[%clk 0:02:05]}  Nxf4 {[%clk 0:01:17]} 28. exf4 {[%clk 0:02:05]}  Nf7 {[%clk 0:01:11]} 29. Bd3 {[%clk 0:02:03]}  Bxf4 {[%clk 0:01:04]} 30. gxf4 {[%clk 0:01:58]}  Qxf4 {[%clk 0:01:05]} 31. Kg2 {[%clk 0:01:46]}  Ng5 {[%clk 0:00:54]} 32. Rh1+ {[%clk 0:01:46]}  Nh3 {[%clk 0:00:54]} 33. Rcf1 {[%clk 0:01:35]}  Ref8 {[%clk 0:00:53]} 34. Qc5 {[%clk 0:01:22]}  Qh6 {[%clk 0:00:46]} 35. Be5 {[%clk 0:01:15]}  f4 {[%clk 0:00:29]} 36. Qe7+ {[%clk 0:01:09]}  Rf7 {[%clk 0:00:17]} 37. Qxf7+ {[%clk 0:01:08]}  Rg7 {[%clk 0:00:13]} 38. Bxg6+ {[%clk 0:01:07]} 1-0

[Event "December 5 Late 2023"]
[Site "https://www.chess.com"]
[Date "2023.12.05"]
[Round "4"]
[White "Melikhov, Evgeny V."]
[Black "Miranda, Rafael"]
[Result "0-1"]
[Board "108"]
[TimeControl "180+1"]
[WhiteFideId "4122046"]
[BlackFideId "130990"]
[WhiteElo "2391"]
[BlackElo "2597"]
[WhiteTeam "GRE"]
[BlackTeam "ARG"]
[WhiteClock "0:00:12"]
[BlackClock "0:00:41"]

1. d4 {[%clk 0:03:00]}  Nf6 {[%clk 0:02:59]} 2. c4 {[%clk 0:03:00]}  g6 {[%clk 0:02:59]} 3. Nc3 {[%clk 0:03:01]}  d5 {[%clk 0:02:59]} 4. Nf3 {[%clk 0:02:56]}  Bg7 {[%clk 0:02:59]} 5. e3 {[%clk 0:02:55]}  O-O {[%clk 0:02:59]} 6. Be2 {[%clk 0:02:56]}  c5 {[%clk 0:02:59]} 7. O-O {[%clk 0:02:55]}  cxd4 {[%clk 0:03:00]} 8. exd4 {[%clk 0:02:55]}  Nc6 {[%clk 0:03:00]} 9. Re1 {[%clk 0:02:54]}  b6 {[%clk 0:02:59]} 10. Ne5 {[%clk 0:02:51]}  Bb7 {[%clk 0:02:53]} 11. Bf3 {[%clk 0:02:51]}  Na5 {[%clk 0:02:30]} 12. b3 {[%clk 0:02:42]}  dxc4 {[%clk 0:02:29]} 13. bxc4 {[%clk 0:02:41]}  Bxf3 {[%clk 0:02:25]} 14. Nxf3 {[%clk 0:02:08]}  Nxc4 {[%clk 0:02:24]} 15. Bg5 {[%clk 0:02:07]}  h6 {[%clk 0:02:22]} 16. Bf4 {[%clk 0:02:03]}  Rc8 {[%clk 0:02:21]} 17. Rc1 {[%clk 0:02:01]}  e6 {[%clk 0:02:07]} 18. Qe2 {[%clk 0:01:51]}  Nd5 {[%clk 0:01:59]} 19. Nxd5 {[%clk 0:01:48]}  Qxd5 {[%clk 0:02:00]} 20. Be5 {[%clk 0:01:38]}  b5 {[%clk 0:01:54]} 21. Bxg7 {[%clk 0:01:26]}  Kxg7 {[%clk 0:01:54]} 22. h4 {[%clk 0:01:25]}  Rfd8 {[%clk 0:01:37]} 23. Ne5 {[%clk 0:01:04]}  Qxd4 {[%clk 0:01:15]} 24. Nxf7 {[%clk 0:01:04]}  Kxf7 {[%clk 0:01:07]} 25. Qxe6+ {[%clk 0:01:03]}  Kg7 {[%clk 0:01:07]} 26. Rcd1 {[%clk 0:00:56]}  Qf6 {[%clk 0:00:56]} 27. Qe7+ {[%clk 0:00:50]}  Qxe7 {[%clk 0:00:55]} 28. Rxe7+ {[%clk 0:00:50]}  Kf6 {[%clk 0:00:55]} 29. Rde1 {[%clk 0:00:46]}  Rd1 {[%clk 0:00:41]} 30. Re6+ {[%clk 0:00:34]}  Kf7 {[%clk 0:00:41]} 31. Re7+ {[%clk 0:00:12]}  Kf8 {[%clk 0:00:41]} 0-1

[Event "December 5 Late 2023"]
[Site "https://www.chess.com"]
[Date "2023.12.05"]
[Round "4"]
[White "Espinoza Villanueva, Rodrigo"]
[Black "Donchenko, Anatoly"]
[Result "1-0"]
[Board "110"]
[TimeControl "180+1"]
[WhiteFideId "5140188"]
[BlackFideId "4106091"]
[WhiteElo "2577"]
[BlackElo "2390"]
[WhiteTeam "MEX"]
[BlackTeam "GER"]
[WhiteClock "0:00:40"]
[BlackClock "0:01:08"]

1. d4 {[%clk 0:03:00]}  d5 {[%clk 0:02:58]} 2. c4 {[%clk 0:03:01]}  dxc4 {[%clk 0:02:58]} 3. e4 {[%clk 0:03:00]}  Nf6 {[%clk 0:02:56]} 4. e5 {[%clk 0:02:59]}  Nd5 {[%clk 0:02:56]} 5. Bxc4 {[%clk 0:02:59]}  Nc6 {[%clk 0:02:56]} 6. Nf3 {[%clk 0:02:58]}  Bg4 {[%clk 0:02:54]} 7. Nc3 {[%clk 0:02:52]}  e6 {[%clk 0:02:53]} 8. Be3 {[%clk 0:02:47]}  Nb6 {[%clk 0:02:49]} 9. Bd3 {[%clk 0:02:45]}  Nb4 {[%clk 0:02:48]} 10. Be4 {[%clk 0:02:42]}  N4d5 {[%clk 0:02:48]} 11. O-O {[%clk 0:02:39]}  Be7 {[%clk 0:02:48]} 12. Re1 {[%clk 0:02:38]}  Bh5 {[%clk 0:02:44]} 13. Rc1 {[%clk 0:02:36]}  O-O {[%clk 0:02:37]} 14. Bb1 {[%clk 0:02:29]}  Nxe3 {[%clk 0:02:26]} 15. fxe3 {[%clk 0:02:30]}  c5 {[%clk 0:02:24]} 16. Qe2 {[%clk 0:02:25]}  cxd4 {[%clk 0:02:23]} 17. exd4 {[%clk 0:02:25]}  Bxf3 {[%clk 0:02:21]} 18. Bxh7+ {[%clk 0:02:05]}  Kxh7 {[%clk 0:02:18]} 19. Qd3+ {[%clk 0:02:06]}  Kg8 {[%clk 0:02:16]} 20. gxf3 {[%clk 0:02:06]}  Bg5 {[%clk 0:01:59]} 21. Rc2 {[%clk 0:02:06]}  Rc8 {[%clk 0:01:55]} 22. Rg2 {[%clk 0:02:05]}  Bh6 {[%clk 0:01:54]} 23. Ne4 {[%clk 0:02:03]}  Kh8 {[%clk 0:01:51]} 24. Ng3 {[%clk 0:01:57]}  Qd5 {[%clk 0:01:49]} 25. Kh1 {[%clk 0:01:55]}  Rcd8 {[%clk 0:01:46]} 26. Re4 {[%clk 0:01:45]}  Nc4 {[%clk 0:01:41]} 27. Rh4 {[%clk 0:01:39]}  Nxe5 {[%clk 0:01:38]} 28. Qd2 {[%clk 0:01:34]}  Kh7 {[%clk 0:01:23]} 29. Nf5 {[%clk 0:00:41]}  exf5 {[%clk 0:01:16]} 30. Rxg7+ {[%clk 0:00:39]}  Kxg7 {[%clk 0:01:09]} 31. Qxh6+ {[%clk 0:00:39]}  Kg8 {[%clk 0:01:08]} 32. Qh8# {[%clk 0:00:40]} 1-0

[Event "December 5 Late 2023"]
[Site "https://www.chess.com"]
[Date "2023.12.05"]
[Round "4"]
[White "Asish Panda"]
[Black "Chaika, Vitalii"]
[Result "0-1"]
[Board "111"]
[TimeControl "180+1"]
[WhiteFideId "45012458"]
[BlackFideId "14111802"]
[WhiteElo "2575"]
[BlackElo "2389"]
[WhiteTeam "IND"]
[BlackTeam "UKR"]
[WhiteClock "0:00:01"]
[BlackClock "0:00:04"]

1. e4 {[%clk 0:03:00]}  d6 {[%clk 0:03:00]} 2. g3 {[%clk 0:03:00]}  Nf6 {[%clk 0:02:54]} 3. Bg2 {[%clk 0:02:59]}  e5 {[%clk 0:02:52]} 4. Ne2 {[%clk 0:02:59]}  Be7 {[%clk 0:02:48]} 5. O-O {[%clk 0:02:59]}  c6 {[%clk 0:02:46]} 6. d4 {[%clk 0:02:59]}  Nbd7 {[%clk 0:02:45]} 7. c4 {[%clk 0:02:59]}  O-O {[%clk 0:02:41]} 8. Nbc3 {[%clk 0:02:59]}  a6 {[%clk 0:02:38]} 9. h3 {[%clk 0:02:58]}  b5 {[%clk 0:02:37]} 10. cxb5 {[%clk 0:02:55]}  axb5 {[%clk 0:02:35]} 11. Be3 {[%clk 0:02:48]}  b4 {[%clk 0:02:20]} 12. Nb1 {[%clk 0:02:44]}  Ba6 {[%clk 0:02:16]} 13. Nd2 {[%clk 0:02:37]}  Bb5 {[%clk 0:02:01]} 14. Re1 {[%clk 0:02:24]}  Ra6 {[%clk 0:01:55]} 15. Nb3 {[%clk 0:01:51]}  Qa8 {[%clk 0:01:52]} 16. Nec1 {[%clk 0:01:46]}  Nb6 {[%clk 0:01:43]} 17. dxe5 {[%clk 0:01:39]}  dxe5 {[%clk 0:01:43]} 18. Bc5 {[%clk 0:01:36]}  Qb7 {[%clk 0:01:27]} 19. Qd2 {[%clk 0:01:23]}  Ra4 {[%clk 0:01:14]} 20. Qc2 {[%clk 0:00:56]}  Rfa8 {[%clk 0:01:05]} 21. a3 {[%clk 0:00:44]}  bxa3 {[%clk 0:01:03]} 22. bxa3 {[%clk 0:00:44]}  Nc4 {[%clk 0:00:56]} 23. Nd3 {[%clk 0:00:34]}  Nxa3 {[%clk 0:00:45]} 24. Bxa3 {[%clk 0:00:31]}  Rxa3 {[%clk 0:00:45]} 25. Rxa3 {[%clk 0:00:16]}  Rxa3 {[%clk 0:00:44]} 26. Ndc5 {[%clk 0:00:16]}  Qa7 {[%clk 0:00:36]} 27. Rc1 {[%clk 0:00:12]}  h6 {[%clk 0:00:28]} 28. Bf1 {[%clk 0:00:08]}  Ba4 {[%clk 0:00:22]} 29. Nxa4 {[%clk 0:00:07]}  Qxa4 {[%clk 0:00:23]} 30. Nd2 {[%clk 0:00:06]}  Qa7 {[%clk 0:00:16]} 31. Qxc6 {[%clk 0:00:04]}  Rxg3+ {[%clk 0:00:16]} 32. Kh1 {[%clk 0:00:01]}  Qxf2 {[%clk 0:00:14]} 33. Qc8+ {[%clk 0:00:02]}  Kh7 {[%clk 0:00:13]} 34. Qf5+ {[%clk 0:00:02]}  Qxf5 {[%clk 0:00:14]} 35. exf5 {[%clk 0:00:03]}  Bb4 {[%clk 0:00:10]} 36. Nc4 {[%clk 0:00:02]}  Rc3 {[%clk 0:00:10]} 37. Rxc3 {[%clk 0:00:01]}  Bxc3 {[%clk 0:00:10]} 38. Kg2 {[%clk 0:00:01]}  Nh5 {[%clk 0:00:09]} 39. Kf3 {[%clk 0:00:02]}  Nf4 {[%clk 0:00:09]} 40. Ke4 {[%clk 0:00:02]}  f6 {[%clk 0:00:10]} 41. Nd6 {[%clk 0:00:02]}  Kg8 {[%clk 0:00:08]} 42. Bc4+ {[%clk 0:00:02]}  Kf8 {[%clk 0:00:08]} 43. Nb5 {[%clk 0:00:02]}  Bb4 {[%clk 0:00:07]} 44. Nc7 {[%clk 0:00:02]}  Ba3 {[%clk 0:00:06]} 45. h4 {[%clk 0:00:02]}  Ke7 {[%clk 0:00:05]} 46. Ne6 {[%clk 0:00:03]}  Nh5 {[%clk 0:00:05]} 47. Nc7 {[%clk 0:00:02]}  Ng3+ {[%clk 0:00:05]} 48. Kd5 {[%clk 0:00:02]}  Nxf5 {[%clk 0:00:06]} 49. Kc6 {[%clk 0:00:02]}  Nd4+ {[%clk 0:00:05]} 50. Kb6 {[%clk 0:00:02]}  Bd6 {[%clk 0:00:05]} 51. Nd5+ {[%clk 0:00:03]}  Kd7 {[%clk 0:00:05]} 52. Kb7 {[%clk 0:00:03]}  e4 {[%clk 0:00:04]} 53. Nb6+ {[%clk 0:00:03]}  Ke7 {[%clk 0:00:04]} 54. Ba6 {[%clk 0:00:03]}  e3 {[%clk 0:00:03]} 55. Nd5+ {[%clk 0:00:03]}  Ke6 {[%clk 0:00:04]} 56. Nxe3 {[%clk 0:00:04]}  f5 {[%clk 0:00:03]} 57. Bc4+ {[%clk 0:00:04]}  Ke5 {[%clk 0:00:03]} 58. Bf7 {[%clk 0:00:04]}  f4 {[%clk 0:00:03]} 59. Nc4+ {[%clk 0:00:04]}  Kf6 {[%clk 0:00:02]} 60. Be8 {[%clk 0:00:05]}  Be5 {[%clk 0:00:01]} 61. Bh5 {[%clk 0:00:04]}  g6 {[%clk 0:00:01]} 62. Bd1 {[%clk 0:00:03]}  f3 {[%clk 0:00:01]} 63. Kb6 {[%clk 0:00:03]}  g5 {[%clk 0:00:02]} 64. h5 {[%clk 0:00:03]}  g4 {[%clk 0:00:02]} 65. Kc5 {[%clk 0:00:04]}  Ne6+ {[%clk 0:00:02]} 66. Kd5 {[%clk 0:00:04]}  Bf4 {[%clk 0:00:03]} 67. Ke4 {[%clk 0:00:04]}  Ng5+ {[%clk 0:00:02]} 68. Kd5 {[%clk 0:00:04]}  g3 {[%clk 0:00:03]} 69. Nd6 {[%clk 0:00:02]}  g2 {[%clk 0:00:04]} 70. Bxf3 {[%clk 0:00:01]}  Nxf3 {[%clk 0:00:04]} 71. Ne4+ {[%clk 0:00:02]}  Kf5 {[%clk 0:00:04]} 72. Nf2 {[%clk 0:00:02]}  g1=Q {[%clk 0:00:04]} 73. Nd3 {[%clk 0:00:01]}  Qd4+ {[%clk 0:00:04]} 0-1

[Event "December 5 Late 2023"]
[Site "https://www.chess.com"]
[Date "2023.12.05"]
[Round "4"]
[White "Ezat, Mohamed"]
[Black "Fernandez Bustamante, Leancy B."]
[Result "0-1"]
[Board "112"]
[TimeControl "180+1"]
[WhiteFideId "10600906"]
[BlackFideId "3523870"]
[WhiteElo "2565"]
[BlackElo "2386"]
[WhiteTeam "EGY"]
[BlackTeam "CUB"]
[WhiteClock "0:00:03"]
[BlackClock "0:00:13"]

1. d4 {[%clk 0:01:53]}  Nf6 {[%clk 0:02:55]} 2. Nf3 {[%clk 0:01:47]}  d6 {[%clk 0:02:55]} 3. Nc3 {[%clk 0:01:22]}  Nbd7 {[%clk 0:02:52]} 4. e4 {[%clk 0:01:21]}  e5 {[%clk 0:02:50]} 5. Bc4 {[%clk 0:01:21]}  h6 {[%clk 0:02:44]} 6. O-O {[%clk 0:00:47]}  Be7 {[%clk 0:02:42]} 7. Re1 {[%clk 0:00:47]}  O-O {[%clk 0:02:41]} 8. a4 {[%clk 0:00:47]}  c6 {[%clk 0:02:38]} 9. h3 {[%clk 0:00:47]}  Re8 {[%clk 0:02:36]} 10. Ba2 {[%clk 0:00:47]}  Bf8 {[%clk 0:02:36]} 11. a5 {[%clk 0:00:46]}  exd4 {[%clk 0:02:28]} 12. Nxd4 {[%clk 0:00:44]}  Nc5 {[%clk 0:02:26]} 13. Bf4 {[%clk 0:00:39]}  Be6 {[%clk 0:02:24]} 14. Nxe6 {[%clk 0:00:37]}  Nxe6 {[%clk 0:02:23]} 15. Bg3 {[%clk 0:00:38]}  Nc5 {[%clk 0:02:19]} 16. Qf3 {[%clk 0:00:36]}  Qc7 {[%clk 0:02:00]} 17. Rad1 {[%clk 0:00:32]}  Qxa5 {[%clk 0:01:58]} 18. e5 {[%clk 0:00:30]}  dxe5 {[%clk 0:01:55]} 19. Bxe5 {[%clk 0:00:30]}  Ncd7 {[%clk 0:01:50]} 20. Bd4 {[%clk 0:00:27]}  Rxe1+ {[%clk 0:01:26]} 21. Rxe1 {[%clk 0:00:26]}  c5 {[%clk 0:01:13]} 22. Bxf6 {[%clk 0:00:25]}  Nxf6 {[%clk 0:01:13]} 23. Re4 {[%clk 0:00:20]}  Qb6 {[%clk 0:00:47]} 24. Bb3 {[%clk 0:00:19]}  Rc8 {[%clk 0:00:41]} 25. Rc4 {[%clk 0:00:17]}  Qd6 {[%clk 0:00:38]} 26. Re4 {[%clk 0:00:17]}  c4 {[%clk 0:00:36]} 27. Rxc4 {[%clk 0:00:16]}  Rxc4 {[%clk 0:00:36]} 28. Bxc4 {[%clk 0:00:17]}  Qc5 {[%clk 0:00:33]} 29. b3 {[%clk 0:00:16]}  Qc7 {[%clk 0:00:27]} 30. Nb5 {[%clk 0:00:12]}  Qe5 {[%clk 0:00:25]} 31. Nxa7 {[%clk 0:00:10]}  Bd6 {[%clk 0:00:25]} 32. g3 {[%clk 0:00:10]}  g6 {[%clk 0:00:21]} 33. Nb5 {[%clk 0:00:09]}  Bb8 {[%clk 0:00:21]} 34. Nc3 {[%clk 0:00:08]}  Kg7 {[%clk 0:00:21]} 35. Nd5 {[%clk 0:00:08]}  Nxd5 {[%clk 0:00:21]} 36. Bxd5 {[%clk 0:00:09]}  Qc7 {[%clk 0:00:17]} 37. Bxb7 {[%clk 0:00:09]}  Qxc2 {[%clk 0:00:15]} 38. Bd5 {[%clk 0:00:09]}  Qc7 {[%clk 0:00:14]} 39. Qe3 {[%clk 0:00:07]}  Ba7 {[%clk 0:00:12]} 40. Qe4 {[%clk 0:00:07]}  Qxg3+ {[%clk 0:00:11]} 41. Qg2 {[%clk 0:00:06]}  Qxg2+ {[%clk 0:00:10]} 42. Kxg2 {[%clk 0:00:07]}  Kf6 {[%clk 0:00:11]} 43. Bc4 {[%clk 0:00:07]}  Ke7 {[%clk 0:00:11]} 44. b4 {[%clk 0:00:07]}  f6 {[%clk 0:00:09]} 45. f4 {[%clk 0:00:07]}  Kd6 {[%clk 0:00:08]} 46. Kf3 {[%clk 0:00:07]}  Bd4 {[%clk 0:00:08]} 47. f5 {[%clk 0:00:07]}  g5 {[%clk 0:00:07]} 48. Kg4 {[%clk 0:00:07]}  Ke5 {[%clk 0:00:07]} 49. Be6 {[%clk 0:00:05]}  Bc3 {[%clk 0:00:05]} 50. Kh5 {[%clk 0:00:05]}  Bxb4 {[%clk 0:00:05]} 51. Kxh6 {[%clk 0:00:06]}  Kf4 {[%clk 0:00:05]} 52. Kg6 {[%clk 0:00:05]}  Bc3 {[%clk 0:00:05]} 53. Bc4 {[%clk 0:00:04]}  Bd4 {[%clk 0:00:05]} 54. Bf1 {[%clk 0:00:04]}  Be5 {[%clk 0:00:05]} 55. Bc4 {[%clk 0:00:05]}  Kg3 {[%clk 0:00:05]} 56. h4 {[%clk 0:00:05]}  gxh4 {[%clk 0:00:05]} 57. Bd5 {[%clk 0:00:05]}  h3 {[%clk 0:00:06]} 58. Kh5 {[%clk 0:00:05]}  h2 {[%clk 0:00:05]} 59. Kg6 {[%clk 0:00:04]}  Kf2 {[%clk 0:00:05]} 60. Kh5 {[%clk 0:00:04]}  Kg1 {[%clk 0:00:06]} 61. Kg4 {[%clk 0:00:04]}  h1=Q {[%clk 0:00:07]} 62. Bxh1 {[%clk 0:00:03]}  Kxh1 {[%clk 0:00:08]} 63. Kf3 {[%clk 0:00:03]}  Kh2 {[%clk 0:00:08]} 64. Kg4 {[%clk 0:00:03]}  Kg2 {[%clk 0:00:08]} 65. Kh5 {[%clk 0:00:03]}  Kf3 {[%clk 0:00:09]} 66. Kg6 {[%clk 0:00:03]}  Kf4 {[%clk 0:00:10]} 67. Kh5 {[%clk 0:00:03]}  Kxf5 {[%clk 0:00:11]} 68. Kh4 {[%clk 0:00:03]}  Kf4 {[%clk 0:00:11]} 69. Kh3 {[%clk 0:00:04]}  Kf3 {[%clk 0:00:11]} 70. Kh4 {[%clk 0:00:04]}  f5 {[%clk 0:00:12]} 71. Kh3 {[%clk 0:00:04]}  f4 {[%clk 0:00:13]} 72. Kh4 {[%clk 0:00:03]}  Kg2 {[%clk 0:00:13]} 0-1

[Event "December 5 Late 2023"]
[Site "https://www.chess.com"]
[Date "2023.12.05"]
[Round "4"]
[White "Su, Dion"]
[Black "Veljanoski, Andrej"]
[Result "0-1"]
[Board "113"]
[TimeControl "180+1"]
[WhiteFideId "2029731"]
[BlackFideId "15003604"]
[WhiteElo "2380"]
[BlackElo "2555"]
[WhiteTeam "USA"]
[BlackTeam "MKD"]
[WhiteClock "0:00:00"]
[BlackClock "0:01:43"]

1. e4 {[%clk 0:03:00]}  b6 {[%clk 0:03:00]} 2. Nc3 {[%clk 0:02:59]}  Bb7 {[%clk 0:03:01]} 3. d4 {[%clk 0:02:59]}  g6 {[%clk 0:03:01]} 4. Be3 {[%clk 0:02:58]}  Bg7 {[%clk 0:03:02]} 5. f3 {[%clk 0:02:58]}  d6 {[%clk 0:03:03]} 6. Qd2 {[%clk 0:02:58]}  Nd7 {[%clk 0:03:03]} 7. O-O-O {[%clk 0:02:59]}  e5 {[%clk 0:03:03]} 8. h4 {[%clk 0:02:58]}  h6 {[%clk 0:03:00]} 9. dxe5 {[%clk 0:02:54]}  Nxe5 {[%clk 0:03:00]} 10. Bb5+ {[%clk 0:02:47]}  Nd7 {[%clk 0:02:48]} 11. h5 {[%clk 0:02:25]}  g5 {[%clk 0:02:44]} 12. f4 {[%clk 0:02:20]}  gxf4 {[%clk 0:02:44]} 13. Bxf4 {[%clk 0:02:21]}  a6 {[%clk 0:02:16]} 14. Bc4 {[%clk 0:02:12]}  Ngf6 {[%clk 0:02:11]} 15. Bd5 {[%clk 0:01:50]}  Nxd5 {[%clk 0:02:05]} 16. exd5 {[%clk 0:01:46]}  Qf6 {[%clk 0:01:56]} 17. Nf3 {[%clk 0:01:37]}  O-O-O {[%clk 0:01:53]} 18. Rhf1 {[%clk 0:01:29]}  Rhe8 {[%clk 0:01:48]} 19. Kb1 {[%clk 0:01:13]}  Nc5 {[%clk 0:01:47]} 20. Nd4 {[%clk 0:00:00]}  Ne4 {[%clk 0:01:43]} 0-1

[Event "December 5 Late 2023"]
[Site "https://www.chess.com"]
[Date "2023.12.05"]
[Round "4"]
[White "Shtivelband, Richard"]
[Black "Przybylski, Wojciech"]
[Result "0-1"]
[Board "115"]
[TimeControl "180+1"]
[WhiteFideId "2017342"]
[BlackFideId "1117599"]
[WhiteElo "2377"]
[BlackElo "2546"]
[WhiteTeam "USA"]
[BlackTeam "POL"]
[WhiteClock "0:02:12"]
[BlackClock "0:01:39"]

1. d4 {[%clk 0:03:00]}  Nf6 {[%clk 0:02:56]} 2. c4 {[%clk 0:03:00]}  e6 {[%clk 0:02:57]} 3. Nc3 {[%clk 0:02:59]}  Bb4 {[%clk 0:02:56]} 4. Qc2 {[%clk 0:02:59]}  d5 {[%clk 0:02:56]} 5. Nf3 {[%clk 0:02:53]}  c5 {[%clk 0:02:55]} 6. cxd5 {[%clk 0:02:50]}  Qxd5 {[%clk 0:02:49]} 7. Bd2 {[%clk 0:02:48]}  Bxc3 {[%clk 0:02:47]} 8. Bxc3 {[%clk 0:02:49]}  Nc6 {[%clk 0:02:35]} 9. e3 {[%clk 0:02:45]}  cxd4 {[%clk 0:02:32]} 10. Nxd4 {[%clk 0:02:44]}  O-O {[%clk 0:02:27]} 11. Nxc6 {[%clk 0:02:42]}  Qxc6 {[%clk 0:02:27]} 12. O-O-O {[%clk 0:02:39]}  Nd5 {[%clk 0:02:23]} 13. Bd4 {[%clk 0:02:32]}  Bd7 {[%clk 0:02:17]} 14. Qxc6 {[%clk 0:02:31]}  Bxc6 {[%clk 0:02:16]} 15. a3 {[%clk 0:02:28]}  f6 {[%clk 0:02:13]} 16. e4 {[%clk 0:02:25]}  Nf4 {[%clk 0:02:08]} 17. f3 {[%clk 0:02:23]}  Rfd8 {[%clk 0:02:04]} 18. g3 {[%clk 0:02:19]}  Ng6 {[%clk 0:02:03]} 19. Bc4 {[%clk 0:02:19]}  Kf7 {[%clk 0:02:01]} 20. Rhe1 {[%clk 0:02:14]}  Rac8 {[%clk 0:01:48]} 21. Kb1 {[%clk 0:02:13]}  Bxe4+ {[%clk 0:01:43]} 22. fxe4 {[%clk 0:02:12]}  Rxc4 {[%clk 0:01:39]} 23. Bb6 {[%clk 0:02:12]} 0-1

[Event "December 5 Late 2023"]
[Site "https://www.chess.com"]
[Date "2023.12.05"]
[Round "4"]
[White "Akhayan, Ruben"]
[Black "Ferreira, Vitor Hugo Vieira"]
[Result "1-0"]
[Board "119"]
[TimeControl "180+1"]
[WhiteFideId "204439"]
[BlackFideId "2119765"]
[WhiteElo "2373"]
[BlackElo "2517"]
[WhiteTeam "BEL"]
[BlackTeam "BRA"]
[WhiteClock "0:00:47"]
[BlackClock "0:01:30"]

1. e4 {[%clk 0:03:00]}  c5 {[%clk 0:02:57]} 2. Nf3 {[%clk 0:03:00]}  d6 {[%clk 0:02:47]} 3. d4 {[%clk 0:03:01]}  cxd4 {[%clk 0:02:48]} 4. Nxd4 {[%clk 0:03:01]}  Nf6 {[%clk 0:02:47]} 5. Nc3 {[%clk 0:03:01]}  a6 {[%clk 0:02:47]} 6. Bc4 {[%clk 0:03:02]}  e6 {[%clk 0:02:47]} 7. Bb3 {[%clk 0:03:02]}  Nbd7 {[%clk 0:02:47]} 8. O-O {[%clk 0:03:02]}  Nc5 {[%clk 0:02:47]} 9. f4 {[%clk 0:03:03]}  Qc7 {[%clk 0:02:41]} 10. Kh1 {[%clk 0:02:59]}  b5 {[%clk 0:02:40]} 11. e5 {[%clk 0:02:45]}  dxe5 {[%clk 0:02:32]} 12. fxe5 {[%clk 0:02:45]}  Nfd7 {[%clk 0:02:25]} 13. Qf3 {[%clk 0:02:03]}  Nxe5 {[%clk 0:01:56]} 14. Qxa8 {[%clk 0:02:00]}  Bd6 {[%clk 0:01:56]} 15. Ndxb5 {[%clk 0:01:51]}  axb5 {[%clk 0:01:55]} 16. Nxb5 {[%clk 0:01:51]}  Qd7 {[%clk 0:01:55]} 17. Nxd6+ {[%clk 0:01:39]}  Ke7 {[%clk 0:01:55]} 18. Nxc8+ {[%clk 0:01:15]}  Rxc8 {[%clk 0:01:55]} 19. Qa3 {[%clk 0:01:11]}  Ke8 {[%clk 0:01:47]} 20. Be3 {[%clk 0:01:05]}  Nxb3 {[%clk 0:01:42]} 21. axb3 {[%clk 0:01:03]}  Ng4 {[%clk 0:01:37]} 22. Bg1 {[%clk 0:00:58]}  Rxc2 {[%clk 0:01:37]} 23. Qa8+ {[%clk 0:00:55]}  Ke7 {[%clk 0:01:37]} 24. Ra7 {[%clk 0:00:49]}  Rc7 {[%clk 0:01:35]} 25. Rxc7 {[%clk 0:00:49]}  Qxc7 {[%clk 0:01:35]} 26. Qa7 {[%clk 0:00:47]}  Qxa7 {[%clk 0:01:30]} 27. Bxa7 {[%clk 0:00:47]} 1-0